Cogmind - Beta 16 @@@ ROGUE MODE // 2026.01.03 @ 04:00:21 Player: C4PT41N Result: Destroyed by as-16757 with Assembled Heavy Rifle Performance ------------- Evolutions (0) 0 Regions Visited (2) 400 Robots Destroyed (9) 45 Value Destroyed (183) 183 Prototype IDs (0) 0 Alien Tech Used (0) 0 Bonus (0) 0 TOTAL SCORE: 628 Bonus ------- None Cogmind --------- Core Integrity 0/250 Matter 300/300 Energy 99/100 System Corruption 0% Temperature Cool (0) Movement Core (100) Ox1 Location -10/Mines Parts ------- > --- POWER (1) -------- (None) > --- PROPULSION (2) --- (None) > --- UTILITY (2) ------ Small Storage Unit > --- WEAPON (2) ------- (None) > --- INVENTORY (8) ---- Medium Matter Pod (100) Seismic Detector Utility Shielding Light Armor Plating Light Assault Rifle Peak State ------------ > --- POWER ------------ Light Nuclear Core > --- PROPULSION ------- Aluminum Leg Aluminum Leg > --- UTILITY ---------- Small Storage Unit Improved Terrain Scanner > --- WEAPON ----------- EM Pulse Gun Light Assault Rifle > --- INVENTORY -------- Ion Engine [Rating: 11] Favorites ----------- Power Light Nuclear Core Engine Ion Engine Power Core Light Nuclear Core Propulsion Aluminum Leg Leg Aluminum Leg Utility Small Storage Unit Device Improved Terrain Scanner Storage Small Storage Unit Weapon Light Assault Rifle Energy Gun EM Pulse Gun Energy Cannon Beam Cannon Ballistic Gun Light Assault Rifle Launcher Grenade Launcher Build | -11 -10 -10 ------- Run | Yrd Mat Min Slots Evolved . | . . . Power . | . . . Propulsion . | . . . Utility . | . . . Weapon . | . . . Parts Attached 10 | 7 2 1 Power 2 | 1 1 . Engine 1 | 1 . . Core 1 | . 1 . Reactor . | . . . Propulsion 2 | 2 . . Treads . | . . . Leg 2 | 2 . . Wheel . | . . . Hover . | . . . Flight . | . . . Utility 2 | 2 . . Device 1 | 1 . . Storage 1 | 1 . . Processor . | . . . Hackware . | . . . Protection . | . . . Artifact . | . . . Weapon 4 | 2 1 1 Energy Gun 1 | 1 . . Energy Cannon 1 | . 1 . Ballistic Gun 1 | 1 . . Ballistic Cannon . | . . . Launcher 1 | . . 1 Special Weapon . | . . . Impact Weapon . | . . . Slashing Weapon . | . . . Piercing Weapon . | . . . Special Melee Weapon . | . . . Unidentified Prototypes . | . . . Parts Lost 6 | . . 6 Power 1 | . . 1 Propulsion 2 | . . 2 Utility 1 | . . 1 Weapon 2 | . . 2 Highest Loss Streak 5 | . . 5 To Critical Strikes . | . . . Average Backups 2 | . 1 4 Power . | . . . Propulsion . | . . . Utility 1 | . 1 3 Weapon . | . . 1 Tool/Special . | . . . Unused Backups 4 | . . 4 Power . | . . . Propulsion . | . . . Utility 4 | . . 4 Weapon . | . . . Tool/Special . | . . . Average Slot Usage (%) 91 | . 100 74 Engine 2 | . 3 . Core 8 | . 10 6 Leg 25 | . 28 21 Device 13 | . 14 11 Storage 14 | . 14 14 Energy Gun 4 | . 7 . Energy Cannon 7 | . 6 9 Ballistic Gun 9 | . 14 . Launcher 3 | . . 9 Peak Build Rating 11 | 9 11 11 Average Rating 9 | 7 10 7 On Entrance 6 | . 9 11 Avg Prop Armor Cover (%) . | . . . Naked Turns . | . . . Heaviest Build 17 | 14 15 17 Greatest Support 20 | 20 20 20 Greatest Overweight (x) 2 | 2 . 1 Average Overweight (x) . | . . . Largest Inventory Capacity 8 | 8 8 8 Average Capacity 7 | 7 8 8 Most Carried 5 | . 4 5 Average Carried 2 | . 1 4 Final Capacity 8 | 8 8 8 Final Carried 5 | . 3 5 Class Distribution -------------------- 100% | Mutant Dominant Class ---------------- Mutant | -10/Materials Mutant | -10/Mines Resources | -11 -10 -10 ----------- Run | Yrd Mat Min Matter Collected 397 | 283 24 90 Remotely . | . . . Salvage Created 376 | 149 166 61 Parts 15 | 6 5 4 Haulers Intercepted . | . . . Recyclers Shooed 4 | 2 . 2 Parts Field Recycled . | . . . Retrieved Matter . | . . . Parts Self-Destructed . | . . . Prevented . | . . . Parts Restored . | . . . Kills | -11 -10 -10 ------- Run | Yrd Mat Min Combat Hostiles Destroyed 4 | . 2 2 Guns 2 | . 2 . AOE 2 | . . 2 Classes Destroyed 4 | 3 1 . Worker 2 | 2 . . Tunneler 1 | 1 . . Recycler 2 | 1 1 . Grunt 4 | . 2 2 Best Kill Streak 2 | 1 2 2 Combat Bots Only 2 | . 1 2 Max Kills in Single Turn 1 | 1 1 1 Gunslinging . | . . . Exploded 1 | . . 1 Melee . | . . . Uniques/NPCs Destroyed . | . . . Combat | -11 -10 -10 -------- Run | Yrd Mat Min Hostile Shots Fired 93 | . 21 72 Missed 37 | . 10 27 Hits 56 | . 11 45 Projectile 56 | . 11 45 Critical Strikes 3 | . 2 1 Damage Taken 861 | . 159 702 Core 259 | . 32 227 Absorbed by Shields . | . . . Core Remaining (%) 100 | 100 . . Volleys Fired 33 | 13 16 4 Largest 2 | 2 2 2 Hottest 90 | 60 60 90 Shots Fired 66 | 26 32 8 Gun 58 | 26 32 . Cannon 4 | . . 4 Launcher 4 | . . 4 Special . | . . . Kinetic 29 | 13 16 . Thermal 4 | . . 4 Explosive 4 | . . 4 Electromagnetic 29 | 13 16 . Robot Hit Streak 7 | 7 6 3 Robot Miss Streak 3 | 2 3 1 Penetration Max . | . . . Secondary Targets . | . . . Shots Hit Robots 38 | 16 19 3 Core Hits 22 | 6 10 6 Critical Kills . | . . . Critical Parts Destroyed . | . . . Critical Strikes . | . . . Melee Attacks . | . . . Impact . | . . . Slashing . | . . . Piercing . | . . . Sneak Attacks . | . . . Combat Hostiles . | . . . Follow-up Attacks . | . . . Damage Inflicted 575 | 233 192 150 Guns 381 | 189 192 . Cannons 18 | . . 18 Explosions 167 | 44 . 123 Melee . | . . . Ramming 9 | . . 9 Kinetic 137 | 48 89 . Thermal 62 | 44 . 18 Explosive 123 | . . 123 Electromagnetic 244 | 141 103 . Impact . | . . . Slashing . | . . . Piercing . | . . . Highest Corruption . | . . . Average Corruption . | . . . Corruption Purged . | . . . Corruption Blocked . | . . . Overload Shots . | . . . Overflow Damage . | . . . Projectiles . | . . . Explosions . | . . . Melee . | . . . Knockbacks . | . . . Impact . | . . . Kinetic . | . . . Secondary . | . . . Self-Inflicted Damage 38 | . . 38 Shots 2 | . . 2 Rammed 1 | . . 1 Targets Rammed 3 | . . 3 Kicked 2 | . . 2 Crushed . | . . . Highest Temperature 183 | 20 183 126 Average Temperature 58 | 13 79 64 Received Heat Transfer 150 | . 132 18 Siege Activations . | . . . Martial Activations . | . . . Shielding Activations . | . . . Robots Disrupted . | . . . Combat Hostiles . | . . . Robots Corrupted . | . . . Combat Hostiles . | . . . Parts Fried . | . . . Impact Corruptions . | . . . Robots Melted . | . . . Combat Hostiles . | . . . Parts Melted . | . . . Heat Transferred 87 | 50 . 37 Parts Sabotaged . | . . . Parts Stolen . | . . . Parts Stripped . | . . . Power Chain Reactions 1 | 1 . . Alert | -11 -10 -10 ------- Run | Yrd Mat Min Maximum Alert Level . | . . . Low Security (%) 100 | 100 100 100 Level 1 . | . . . Level 2 . | . . . Level 3 . | . . . Level 4 . | . . . Level 5 . | . . . High Security . | . . . Max Security . | . . . Peak Influence 64 | 5 45 64 Initial 2 | . . 2 Average 7 | . 5 15 Influence Increases 179 | 20 85 74 Destroy 0b10 Robot/C 80 | . 40 40 Destroy 0b10 Robot/NC 25 | 20 5 . Destroy Leader 20 | . 10 10 Destroy Structure 24 | . . 24 Partial Spotted 15 | . 15 . Lose Combat Pursuer 15 | . 15 . Influence Decreases 179 | 20 78 81 Entered New Map 5 | . . 5 Time Decay 150 | 20 78 52 Lost Part 24 | . . 24 Squads Dispatched . | . . . Investigation . | . . . Extermination . | . . . Reinforcement . | . . . Assault . | . . . Garrison . | . . . Intercept . | . . . Searches Triggered . | . . . Construction Impeded . | . . . Haulers Reinforced . | . . . Active Scanning Responses . | . . . Cargo Convoy Interrupts . | . . . Stealth | -11 -10 -10 --------- Run | Yrd Mat Min Distress Signals 2 | . 1 1 Communications Jammed . | . . . Distress Signals . | . . . Times Spotted 13 | . 7 6 Peak Tracking Total 18 | . 3 18 Tactical Retreats 2 | . 1 1 Traps | -11 -10 -10 ------- Run | Yrd Mat Min Traps Triggered . | . . . Indirectly . | . . . Trap Hack Attempts . | . . . Triggered . | . . . Disarmed . | . . . Reprogrammed . | . . . Reused . | . . . Traps Extracted . | . . . Installed . | . . . Triggered . | . . . Machines | -11 -10 -10 ---------- Run | Yrd Mat Min Machines Disabled . | . . . Max in Single Turn . | . . . Machines Repaired . | . . . Machines Dismantled . | . . . Machines Sabotaged . | . . . Overloaded Fab Kills . | . . . Hacking | -11 -10 -10 --------- Run | Yrd Mat Min Machines Accessed 2 | . 2 . Terminals 1 | . 1 . Fabricators . | . . . Repair Stations . | . . . Recycling Units 1 | . 1 . Scanalyzers . | . . . Garrison Access . | . . . Total Hacks 7 | . 7 . Successful 5 | . 5 . Failed 2 | . 2 . Catastrophic 1 | . 1 . Database Lockouts . | . . . Manual 2 | . 2 . Terminals 2 | . 2 . Fabricators . | . . . Repair Stations . | . . . Recycling Units 5 | . 5 . Scanalyzers . | . . . Garrison Access . | . . . Terminal Hacks . | . . . Fabricator Hacks . | . . . Repair Station Hacks . | . . . Recycling Unit Hacks 5 | . 5 . Recycle Component 2 | . 2 . Process 1 | . 1 . Report Inventory 1 | . 1 . Retrieve Matter 1 | . 1 . Scanalyzer . | . . . Garrison Access Hacks . | . . . Unauthorized Hacks . | . . . Terminals . | . . . Fabricators . | . . . Repair Stations . | . . . Recycling Units . | . . . Scanalyzers . | . . . Garrison Access . | . . . Data Cores Recovered . | . . . Used . | . . . Hacking Detections 1 | . 1 . Full Trace Events . | . . . Feedback Events . | . . . Feedback Blocked . | . . . Robot Schematics Acquired . | . . . Robots Built . | . . . Authchips . | . . . Time . | . . . Total Robot Build Rating . | . . . Part Schematics Acquired . | . . . Parts Built . | . . . Authchips . | . . . Time . | . . . Total Part Build Rating . | . . . Part Studies Acquired . | . . . Parts Repaired . | . . . Time . | . . . Parts Recycled 2 | . 2 . Recycled Matter 50 | . 50 . Retrieved Matter 50 | . 50 . Retrieved Components . | . . . Parts Scanalyzed . | . . . Part Schematics Acquired . | . . . Parts Damaged . | . . . Bothacking | -11 -10 -10 ------------ Run | Yrd Mat Min Used RIF Installer . | . . . Robots Hacked . | . . . Non-combat . | . . . Combat . | . . . Robot Hacks Applied . | . . . Relay Couplers Released . | . . . Fabnet Peak Effective % . | . . . Robots Rewired . | . . . Allies Hacked . | . . . Hacks Repelled . | . . . Allies | -11 -10 -10 -------- Run | Yrd Mat Min Total Allies . | . . . Largest Group . | . . . Highest-Rated Group . | . . . Highest-Rated Ally . | . . . Total Orders . | . . . Ally Attacks . | . . . Total Damage . | . . . Kills . | . . . Allies Corrupted . | . . . Allies Melted . | . . . Intel | -11 -10 -10 ------- Run | Yrd Mat Min Active Infowar (turns) 711 | 108 421 182 Terrain 711 | 108 421 182 Robot Analysis Total . | . . . Derelict Logs Recovered 1 | . . 1 Drone Launches . | . . . Drone Recoveries . | . . . Exploration | -11 -10 -10 ------------- Run | Yrd Mat Min Turns Passed 811 | 168 421 222 Spaces Moved 588 | 103 309 176 Core 50 | 10 . 40 Treads . | . . . Legs 538 | 93 309 136 Wheels . | . . . Hover . | . . . Flight . | . . . Fastest Speed 50 | 50 120 100 Average Speed 118 | 118 120 115 Slowest Speed 150 | 150 120 120 Overloaded Moves . | . . . Propulsion Burnouts . | . . . Robots Hopped . | . . . Potential Cave-ins . | . . . Cave-ins Triggered . | . . . Exploration Rate (%) 29 | 6 35 48 Regions Visited 2 Branch Regions 1 Pre-discovered Areas . | . . . Known Exits Taken . | . . . Unknown Exits Taken 2 | 1 1 . Scrap Searched 1 | . . 1 Spaces Dug . | . . . Terrain Destroyed 30 | 3 . 27 Melee . | . . . Projectile . | . . . AOE 30 | 3 . 27 Terrain Rammed . | . . . Walls Destroyed . | . . . Machines Disabled . | . . . Actions | -11 -10 -10 --------- Run | Yrd Mat Min Total 639 | 122 330 187 Wait . | . . . Move 586 | 102 308 176 Hop . | . . . Pick Up 5 | . 3 2 Fast Attach 8 | 7 1 . Attach 1 | . . 1 Detach 2 | . 1 1 Swap 1 | . 1 . Drop . | . . . Fire 33 | 13 16 4 Melee . | . . . Ram 1 | . . 1 Kick 2 | . . 2 Crush . | . . . Escape Stasis . | . . . Rewire . | . . . Trap . | . . . Miscellaneous . | . . . Route ------- -11/Scrapyard -10/Materials -10/Mines History --------- Turn | Location | Event 21 | -11/Scrapyard | Discovered new exit (range 16) 169 | -11/Scrapyard | Entered Materials 317 | -10/Materials | Build established: Mutant 414 | -10/Materials | Discovered new exit (range 15) 590 | -10/Materials | Entered Mines 608 | -10/Mines | Learned location of 1 exit from Materials 682 | -10/Mines | Assembled infested the area 760 | -10/Mines | Core integrity fell below 50% 795 | -10/Mines | Core integrity fell below 20% 803 | -10/Mines | Lost 5 parts (2n1u2w) 812 | -10/Mines | Destroyed by as-16757 with Assembled Heavy Rifle Last Messages --------------- 00683_ Found 54 Matter. 00683_ Kicked R-06 Scavenger out of the way. 00683_ Lgt. Nuclear Core destroyed. 00684_ Acquired Seismic Detector. 00687_ Acquired Lgt. Armor Plating. 00691_ Acquired 54 matter. 00694_ The unstable cave ceiling collapses. 00695_ U-05 Engineer lays Concrete. 00699_ U-05 Engineer builds a Wall. 00700_ The unstable cave ceiling collapses. 00701_ U-05 Engineer destroyed. 00703_ U-05 Engineer lays Concrete. 00704_ U-05 Engineer destroyed. 00742_ Beam Cannon destroyed. 00756_ Grenade Launcher destroyed. 00757_ Aluminum Leg destroyed. 00772_ Imp. Terrain Scanner destroyed. 00783_ T-07 Excavator is excavating. 00790_ Slammed into T-07 Excavator. 00791_ T-07 Excavator destroyed. Map ----- +----------------------------------------------------+ | ???????????#???????????# ###### #######????????? | | ?????????????#????#????# #????# #??????????????? | | ???????????????????????# ##???# #???????#???#??? | | ??????????????#####??### #???# #??????????????? | | ??????????????# #### ##### #????#?????????? | | ?????????????## #??????????????? | | ????????????## #????#??#??????? | | ???????????## ##########?????????#????? | | ???????????# ##????#??????????????????? | | ??????????## ### ##????????????????#???????? | | ????####### ######?????????????????????????? | | ????# ##???????????????????#????????? | | ????# ######?????????#?????????????? | | ????# ##??????#####???????????? | | ????#### #??#??## ##??????????? | | ???????# ### #?????# ##?????????? | | ???????# #??## #????## ##?????????? | | ???????## ????# ##???## #?????????? | | ????????#### ????# ##???## #?????????? | | ???????????# ????# ##??## #?????????? | | ?????????? ????# #### a ###!|##?????????? | | ????????? ????## ## a##?#*%%#?????????? | | ???????? #### ??????# #??# ###?????????? | | ???????#???? ??????## #??###???????????? | | ???????#???? ????????### #????????????????? | | ??????????? ?? ???????#@ #????????????????? | | ????????????????????????# ##????????????????? | | ????????????????????????## ####?????????????????? | | ?????????????????????#???####????????????????????? | | ?????????????????????????????????????????????????? | | ?????????????????????????????????????????????????? | | ?????????????????????????????????????????????????? | | | | | | | | | | | | | | | | | | | | | | | | | | | | | | | | | | | | | +----------------------------------------------------+ Best States ------------- Heat Dissipation 25 Energy Generation 14 Energy Capacity 250 Matter Stores 300 Matter Capacity 300 Sight Range 16 Terrain Scan Range 16 Terrain Scan Density 10 Evasion (%) 55 Item Schematics ----------------- None Robot Schematics ------------------ None Fabricated ------------ Nothing Repaired ---------- Nothing Studied --------- None Alien Tech Used ----------------- None Achievements -------------- None Challenges ------------ None Game ------ Seed OpticalDefenseReplicator Manual? 0 Play Time 00:08:46 Cumulative 10.4 hours Start 2026.01.03 @ 03:53:40 End 2026.01.03 @ 04:00:21 Sessions 1 Manual Loads 0 Difficulty Rogue Special Mode None Game No. 12 Rogue 12 Adventurer 0 Explorer 0 Win Type - Total 0 Types 0/0/0/0/0/0/0/0/0/0 Lore% 15 Gallery% 11 Achievement% 13 Wizard Run 0 Options --------- Layout 1 ASCII 0 Keyboard 0 Movement Arrows Keybinds 0 Fullscreen 2 Font 24/Crisp Map View 50x35 Zoom Use 0% Tactical HUD 1 Map Filters NONE Filters NONE Steam 1 RUN: 281d6a71-cd74-4f0b-8d1e-0dce28b97746